Cogmind - Beta 16 @@@ ROGUE MODE // 2025.11.02 @ 14:59:05 Player: rt Result: Self-destructed Performance ------------- Evolutions (1) 500 Regions Visited (2) 400 Robots Destroyed (18) 90 Value Destroyed (387) 387 Prototype IDs (0) 0 Alien Tech Used (0) 0 Bonus (0) 0 TOTAL SCORE: 1377 Bonus ------- None Cogmind --------- Core Integrity 307/400 Matter 285/300 Energy 230/250 System Corruption 4% Temperature Cool (58) Movement Core (300) Ox5 Location -9/Materials Parts ------- > --- POWER (1) -------- Ion Engine > --- PROPULSION (4) --- (None) > --- UTILITY (2) ------ Medium Storage Unit Sensor Array > --- WEAPON (2) ------- (None) > --- INVENTORY (10) --- Light Ion Engine Light Ion Engine Cryofiber Web Small Storage Unit Improved Terrain Scan Processor Medium Laser Medium Laser Peak State ------------ > --- POWER ------------ Ion Engine > --- PROPULSION ------- Aluminum Leg Aluminum Leg > --- UTILITY ---------- Medium Storage Unit Sensor Array > --- WEAPON ----------- Shock Rifle Shock Rifle > --- INVENTORY -------- Light Ion Engine Light Ion Engine Cryofiber Web Small Storage Unit Improved Terrain Scan Processor Medium Laser Medium Laser Beam Cannon Grenade Launcher [Rating: 12] Favorites ----------- Power Ion Engine Engine Ion Engine Propulsion Aluminum Leg Leg Aluminum Leg Utility Medium Storage Unit Device Sensor Array Storage Medium Storage Unit Weapon Medium Laser Energy Gun Medium Laser Energy Cannon Beam Cannon Launcher Grenade Launcher Build | -11 -10 -9 ------- Run | Yrd Mat Mat Slots Evolved 2 | . . 2 Power . | . . . Propulsion 2 | . . 2 Utility . | . . . Weapon . | . . . Parts Attached 17 | 8 7 2 Power 3 | 2 1 . Engine 3 | 2 1 . Core . | . . . Reactor . | . . . Propulsion 4 | 2 2 . Treads . | . . . Leg 4 | 2 2 . Wheel . | . . . Hover . | . . . Flight . | . . . Utility 4 | 2 2 . Device 2 | 1 1 . Storage 2 | 1 1 . Processor . | . . . Hackware . | . . . Protection . | . . . Artifact . | . . . Weapon 6 | 2 2 2 Energy Gun 4 | 2 . 2 Energy Cannon 1 | . 1 . Ballistic Gun . | . . . Ballistic Cannon . | . . . Launcher 1 | . 1 . Special Weapon . | . . . Impact Weapon . | . . . Slashing Weapon . | . . . Piercing Weapon . | . . . Special Melee Weapon . | . . . Unidentified Prototypes . | . . . Parts Lost 11 | . 5 6 Power 1 | . 1 . Propulsion 4 | . 2 2 Utility 1 | . 1 . Weapon 5 | . 1 4 Highest Loss Streak 5 | . 5 4 To Critical Strikes . | . . . Average Backups 6 | 1 5 8 Power 1 | . 1 2 Propulsion . | . . . Utility 1 | . 1 2 Weapon 2 | . 2 3 Tool/Special . | . . . Unused Backups 4 | . . 4 Power 1 | . . 1 Propulsion . | . . . Utility 2 | . . 2 Weapon 1 | . . 1 Tool/Special . | . . . Average Slot Usage (%) 82 | . 93 74 Engine 12 | . 13 11 Leg 22 | . 24 19 Device 11 | . 11 11 Storage 12 | . 14 11 Energy Gun 12 | . 14 11 Energy Cannon 7 | . 12 3 Launcher 4 | . . 6 Peak Build Rating 12 | 9 9 12 Average Rating 8 | 5 8 9 On Entrance 5 | . 9 7 Avg Prop Armor Cover (%) . | . . . Naked Turns . | . . . Heaviest Build 22 | 15 22 22 Greatest Support 20 | 20 20 20 Greatest Overweight (x) 4 | . 4 2 Average Overweight (x) . | . . 1 Largest Inventory Capacity 10 | 8 10 10 Average Capacity 9 | 7 9 10 Most Carried 9 | 3 9 9 Average Carried 6 | 1 5 8 Final Capacity 10 | 8 10 10 Final Carried 7 | 2 5 7 Class Distribution -------------------- 100% | Mutant Dominant Class ---------------- Mutant | -10/Materials Mutant | -9/Materials Resources | -11 -10 -9 ----------- Run | Yrd Mat Mat Matter Collected 494 | 255 149 90 Remotely . | . . . Salvage Created 455 | 38 209 208 Parts 26 | 4 6 16 Haulers Intercepted . | . . . Recyclers Shooed . | . . . Parts Field Recycled . | . . . Retrieved Matter . | . . . Parts Self-Destructed . | . . . Prevented . | . . . Parts Restored . | . . . Kills | -11 -10 -9 ------- Run | Yrd Mat Mat Combat Hostiles Destroyed 14 | . 5 9 Guns 4 | . 1 3 Cannons 3 | . 3 . AOE 6 | . . 6 Classes Destroyed 6 | 1 1 4 Worker 1 | . . 1 Builder 1 | . . 1 Tunneler 2 | 2 . . Swarmer 6 | . . 6 Grunt 6 | . 5 1 Sentry 2 | . . 2 Best Kill Streak 4 | 1 3 4 Combat Bots Only 4 | . 3 4 Max Kills in Single Turn 2 | 1 1 2 Gunslinging . | . . . Exploded 2 | . . 2 Melee . | . . . Uniques/NPCs Destroyed . | . . . Combat | -11 -10 -9 -------- Run | Yrd Mat Mat Hostile Shots Fired 123 | . 59 64 Missed 32 | . 12 20 Hits 91 | . 47 44 Melee 1 | . . 1 Projectile 90 | . 47 43 Critical Strikes 1 | . 1 . Damage Taken 1132 | . 593 539 Core 225 | . 132 93 Absorbed by Shields . | . . . Core Remaining (%) 73 | 100 47 . Volleys Fired 44 | 10 21 13 Largest 2 | 2 2 2 Hottest 110 | 100 110 110 Shots Fired 86 | 20 40 26 Gun 58 | 20 19 19 Cannon 22 | . 21 1 Launcher 6 | . . 6 Special . | . . . Kinetic . | . . . Thermal 61 | 20 40 1 Explosive 6 | . . 6 Electromagnetic 19 | . . 19 Robot Hit Streak 13 | 13 5 7 Robot Miss Streak 2 | 1 2 2 Penetration Max . | . . . Secondary Targets 1 | . . 1 Max Gunslinging Chain 1 | . . 1 Shots Hit Robots 64 | 17 27 20 Core Hits 29 | 2 8 19 Critical Kills 1 | . 1 . Critical Parts Destroyed . | . . . Critical Strikes 5 | 2 2 1 Burn 3 | 2 1 . Meltdown 1 | . 1 . Corrupt 1 | . . 1 Melee Attacks . | . . . Impact . | . . . Slashing . | . . . Piercing . | . . . Sneak Attacks . | . . . Combat Hostiles . | . . . Follow-up Attacks . | . . . Damage Inflicted 1283 | 216 431 636 Guns 607 | 216 153 238 Cannons 278 | . 278 . Explosions 398 | . . 398 Melee . | . . . Ramming . | . . . Kinetic . | . . . Thermal 647 | 216 431 . Explosive 398 | . . 398 Electromagnetic 238 | . . 238 Impact . | . . . Slashing . | . . . Piercing . | . . . Highest Corruption 4 | . . 4 Average Corruption 4 | . . 4 Corruption Purged . | . . . Corruption Blocked . | . . . Overload Shots . | . . . Overflow Damage 9 | . . 9 Projectiles . | . . . Explosions 9 | . . 9 Melee . | . . . Knockbacks . | . . . Impact . | . . . Kinetic . | . . . Secondary . | . . . Self-Inflicted Damage 54 | . . 54 Shots 3 | . . 3 Rammed . | . . . Targets Rammed . | . . . Kicked . | . . . Crushed . | . . . Highest Temperature 536 | 138 536 109 Average Temperature 140 | 54 222 35 Received Heat Transfer 495 | . 330 165 Effects 6 | . 6 . Shutdowns 1 | . 1 . Energy Bleed 1 | . 1 . Matter Decay 1 | . 1 . Damage (minor) 1 | . 1 . Damage (major) 1 | . 1 . Damage (core) 1 | . 1 . Siege Activations . | . . . Martial Activations . | . . . Shielding Activations . | . . . Robots Disrupted . | . . . Combat Hostiles . | . . . Robots Corrupted . | . . . Combat Hostiles . | . . . Parts Fried . | . . . Impact Corruptions . | . . . Robots Melted 1 | . 1 . Combat Hostiles 1 | . 1 . Parts Melted 6 | 1 5 . Heat Transferred 1887 | 777 1110 . Parts Sabotaged . | . . . Parts Stolen . | . . . Parts Stripped . | . . . Power Chain Reactions 1 | . . 1 Alert | -11 -10 -9 ------- Run | Yrd Mat Mat Maximum Alert Level 1 | . . 1 Low Security (%) 93 | 100 100 85 Level 1 6 | . . 14 Level 2 . | . . . Level 3 . | . . . Level 4 . | . . . Level 5 . | . . . High Security . | . . . Max Security . | . . . Peak Influence 241 | 5 30 241 Initial 8 | . . 8 Average 39 | . 7 82 Influence Increases 510 | 10 120 380 Destroy 0b10 Robot/C 280 | . 100 180 Destroy 0b10 Robot/NC 20 | 10 . 10 Destroy Leader 70 | . 20 50 Successful Hack 5 | . . 5 Destroy Structure 45 | . . 45 Lose Combat Pursuer 90 | . . 90 Influence Decreases 315 | 10 100 205 Entered New Map 12 | . . 12 Time Decay 213 | 10 70 133 Lost Part 90 | . 30 60 Squads Dispatched 2 | . 1 1 Investigation 1 | . 1 . Extermination . | . . . Reinforcement 1 | . . 1 Assault . | . . . Garrison . | . . . Intercept . | . . . Searches Triggered . | . . . Construction Impeded . | . . . Haulers Reinforced . | . . . Active Scanning Responses . | . . . Cargo Convoy Interrupts . | . . . Stealth | -11 -10 -9 --------- Run | Yrd Mat Mat Distress Signals 2 | . . 2 Communications Jammed . | . . . Distress Signals . | . . . Times Spotted 31 | . 7 24 Peak Tracking Total 7 | . 4 7 Tactical Retreats 5 | . . 5 Traps | -11 -10 -9 ------- Run | Yrd Mat Mat Traps Triggered 1 | . 1 . Indirectly . | . . . Trap Hack Attempts . | . . . Triggered . | . . . Disarmed . | . . . Reprogrammed . | . . . Reused . | . . . Traps Extracted . | . . . Installed . | . . . Triggered . | . . . Machines | -11 -10 -9 ---------- Run | Yrd Mat Mat Machines Disabled . | . . . Max in Single Turn . | . . . Machines Repaired . | . . . Machines Dismantled . | . . . Machines Sabotaged . | . . . Overloaded Fab Kills . | . . . Hacking | -11 -10 -9 --------- Run | Yrd Mat Mat Machines Accessed 1 | . . 1 Terminals 1 | . . 1 Fabricators . | . . . Repair Stations . | . . . Recycling Units . | . . . Scanalyzers . | . . . Garrison Access . | . . . Total Hacks 5 | . . 5 Successful 1 | . . 1 Failed 4 | . . 4 Catastrophic . | . . . Database Lockouts . | . . . Manual . | . . . Terminals 5 | . . 5 Fabricators . | . . . Repair Stations . | . . . Recycling Units . | . . . Scanalyzers . | . . . Garrison Access . | . . . Terminal Hacks 1 | . . 1 Zone Layout 1 | . . 1 Fabricator Hacks . | . . . Repair Station Hacks . | . . . Recycling Unit Hacks . | . . . Scanalyzer . | . . . Garrison Access Hacks . | . . . Unauthorized Hacks . | . . . Terminals . | . . . Fabricators . | . . . Repair Stations . | . . . Recycling Units . | . . . Scanalyzers . | . . . Garrison Access . | . . . Data Cores Recovered . | . . . Used . | . . . Hacking Detections 1 | . . 1 Full Trace Events . | . . . Feedback Events . | . . . Feedback Blocked . | . . . Robot Schematics Acquired . | . . . Robots Built . | . . . Authchips . | . . . Time . | . . . Total Robot Build Rating . | . . . Part Schematics Acquired . | . . . Parts Built . | . . . Authchips . | . . . Time . | . . . Total Part Build Rating . | . . . Part Studies Acquired . | . . . Parts Repaired . | . . . Time . | . . . Parts Recycled . | . . . Recycled Matter . | . . . Retrieved Matter . | . . . Retrieved Components . | . . . Parts Scanalyzed . | . . . Part Schematics Acquired . | . . . Parts Damaged . | . . . Bothacking | -11 -10 -9 ------------ Run | Yrd Mat Mat Used RIF Installer . | . . . Robots Hacked . | . . . Non-combat . | . . . Combat . | . . . Robot Hacks Applied . | . . . Relay Couplers Released . | . . . Fabnet Peak Effective % . | . . . Robots Rewired . | . . . Allies Hacked . | . . . Hacks Repelled . | . . . Allies | -11 -10 -9 -------- Run | Yrd Mat Mat Total Allies . | . . . Largest Group . | . . . Highest-Rated Group . | . . . Highest-Rated Ally . | . . . Total Orders . | . . . Ally Attacks . | . . . Total Damage . | . . . Kills . | . . . Allies Corrupted . | . . . Allies Melted . | . . . Intel | -11 -10 -9 ------- Run | Yrd Mat Mat Active Infowar (turns) 645 | 19 251 375 Sensors 387 | . 12 375 Terrain 258 | 19 239 . Robot Analysis Total . | . . . Derelict Logs Recovered . | . . . Drone Launches . | . . . Drone Recoveries . | . . . Exploration | -11 -10 -9 ------------- Run | Yrd Mat Mat Turns Passed 837 | 164 298 375 Spaces Moved 412 | 101 149 162 Core 7 | 6 1 . Treads . | . . . Legs 405 | 95 148 162 Wheels . | . . . Hover . | . . . Flight . | . . . Fastest Speed 50 | 50 120 190 Average Speed 159 | 115 148 196 Slowest Speed 260 | 120 250 260 Overloaded Moves . | . . . Propulsion Burnouts . | . . . Robots Hopped . | . . . Potential Cave-ins . | . . . Cave-ins Triggered . | . . . Exploration Rate (%) 18 | 5 26 25 Regions Visited 2 Branch Regions . Pre-discovered Areas . | . . . Known Exits Taken . | . . . Unknown Exits Taken 2 | 1 1 . Scrap Searched . | . . . Spaces Dug . | . . . Terrain Destroyed 43 | . . 43 Melee . | . . . Projectile . | . . . AOE 43 | . . 43 Terrain Rammed . | . . . Walls Destroyed . | . . . Machines Disabled . | . . . Actions | -11 -10 -9 --------- Run | Yrd Mat Mat Total 502 | 127 185 190 Wait 6 | . 1 5 Move 410 | 100 148 162 Hop . | . . . Pick Up 21 | 9 8 4 Fast Attach . | . . . Attach 14 | 7 5 2 Detach . | . . . Swap 7 | 1 2 4 Drop . | . . . Fire 44 | 10 21 13 Melee . | . . . Ram . | . . . Kick . | . . . Crush . | . . . Escape Stasis . | . . . Rewire . | . . . Trap . | . . . Miscellaneous . | . . . Route ------- -11/Scrapyard -10/Materials -9/Materials (discovered 1 exit: [*Mat]) History --------- Turn | Location | Event 5 | -11/Scrapyard | Discovered new exit (range 16) 165 | -11/Scrapyard | Entered Materials 304 | -10/Materials | Build established: Mutant 381 | -10/Materials | Discovered new exit (range 15) 438 | -10/Materials | Core integrity fell below 50% 463 | -10/Materials | Entered another Materials area 463 | -9/Materials | Evolved 2 slots: Propulsion x2 466 | -9/Materials | Lost 5 parts (1p2n1u1w) 795 | -9/Materials | Discovered new exit (range 15) 838 | -9/Materials | Self-destructed Last Messages --------------- U-05 Engineer lays Concrete. K-01 Serf collects debris. U-05 Engineer lays Concrete. K-01 Serf collects debris. U-05 Engineer lays Concrete. K-01 Serf collects debris. U-05 Engineer lays Concrete. Aluminum Leg destroyed. U-05 Engineer lays Concrete. U-05 Engineer destroyed. Destroyed Hover Unit. U-05 Engineer lays Concrete. U-05 Engineer builds a Wall. K-01 Serf destroyed. Grenade Launcher destroyed. U-05 Engineer builds a Wall. Beam Cannon destroyed. System corrupted by crushing effect (+4). Knocked back. Shock Rifle destroyed. Map ----- +----------------------------------------------------+ | | | | | | | | | | | | | | | ?????????????????????????????????????????????????? | | ?????????????????????????????????????????????????? | | ?????????????????????????????????????????????????? | | ?????????????????????????????????????????????????? | | ?????????????????????????????????????????????????? | | ?????????????????????????????????????????????????? | | ?????????????????????????????????????????????????? | | ?????????????????????????????????????????????????? | | ?????????????????????????????????????????????????? | | ?????????????????????????????????????????????????? | | ??????????????????????#####??????????????????????? | | ??????????????????????# #??????????????????????? | | ??????????????????????# < #??????????????????????? | | ??????????????????????# #??????????????????????? | | ??????????????????????+ #??????????????????????? | | ???????????????#! ????# #??????????????????????? | | ???????????????# ""??# #??????????????????????? | | ???????????????# # #??????????????????????? | | ?????????????????????# @#########??????????????? | | ?????????????????????# #??????????????? | | ?????????????????????# b #??????????????? | | ?????????????????????# % ![ #??????????????? | | ?????????????????????# * [[ #???????######## | | ????????????????????# | w + ? # | | ?????????? ##???????## ! ##########+## # """ ! | | ?????????# #######g % ##???????????# # """ | | ?????????# w [ #????????????# # """ | | ?????????? " [% #????????????# # | | ?????????# ##????????????# # = | | ?????????# ###### u##????????#+#?# #+##+## | | ?????????? ##??????## ##+####????????# ### # | | ???????????????????# #????????# ### # | | ???????????????????# #??####### ## % | | ???????????????????# #??# % | | ???????????????????# #??# ## ###### | | ???????????????????# #### ### ###???? | | ???????????????????# """ + ### ###???? | | ???????????????????# "" ####+#######?# #?????? | | ???????????????????# #? ???????#+####??? | | ???????????????????# # ?"""???????# #??? | | ???????????????????##########? R" ??????# #??? | | ?????????????????????????????? """ ??????# ! #??? | | ????????????????????????????? #?????# #??? | +----------------------------------------------------+ Best States ------------- Heat Dissipation 28 Energy Generation 10 Energy Capacity 250 Matter Stores 300 Matter Capacity 300 Sight Range 16 Robot Scan Range 14 Terrain Scan Range 16 Terrain Scan Density 10 Evasion (%) 55 Item Schematics ----------------- None Robot Schematics ------------------ None Fabricated ------------ Nothing Repaired ---------- Nothing Studied --------- None Alien Tech Used ----------------- None Achievements -------------- None Challenges ------------ None Game ------ Seed CloakTransmissionNullifier Manual? 0 Play Time 00:10:40 Cumulative 7.5 hours Start 2025.11.02 @ 14:42:54 End 2025.11.02 @ 14:59:05 Sessions 1 Manual Loads 0 Difficulty Rogue Special Mode None Game No. 27 Rogue 27 Adventurer 0 Explorer 0 Win Type - Total 0 Types 0/0/0/0/0/0/0/0/0/0 Lore% 9 Gallery% 12 Achievement% 12 Wizard Run 0 Options --------- Layout 1 ASCII 0 Keyboard 0 Movement Numpad Keybinds 0 Fullscreen 1 Font 32/SmallcapsGlow Map View 130x35 Zoom Use 0% Tactical HUD 0 Map Filters NONE Filters NONE Steam 1 RUN: 0b8c4407-58d6-40ac-9289-d41dbbae8069